[Event "Titled Tuesday Blitz July 4 Early 2023"]
[White "Thecourseoisildur"]
[Black "Hartikainen, Jarmo"]
[BlackFideId "503134"]
[WhiteElo "2556"]
[BlackElo "2155"]
[Result "1-0"]
[Round "1"]
[TimeControl "180+2"]
[Date "2023.07.04"]
[WhiteClock "0:01:16"]
[BlackClock "0:00:05"]
[Board "205"]

1. e4 {[%clk 0:02:56]}  c5 {[%clk 0:02:59]} 2. Nf3 {[%clk 0:02:57]}  Nc6 {[%clk 0:02:59]} 3. Bb5 {[%clk 0:02:56]}  e6 {[%clk 0:02:58]} 4. O-O {[%clk 0:02:56]}  Nge7 {[%clk 0:02:58]} 5. Re1 {[%clk 0:02:54]}  a6 {[%clk 0:02:58]} 6. Bf1 {[%clk 0:02:54]}  d6 {[%clk 0:02:56]} 7. d3 {[%clk 0:02:54]}  Ng6 {[%clk 0:02:55]} 8. b3 {[%clk 0:02:52]}  Be7 {[%clk 0:02:54]} 9. Bb2 {[%clk 0:02:52]}  Bf6 {[%clk 0:02:53]} 10. Qc1 {[%clk 0:02:48]}  O-O {[%clk 0:02:42]} 11. Nbd2 {[%clk 0:02:46]}  b5 {[%clk 0:02:38]} 12. Bxf6 {[%clk 0:02:39]}  Qxf6 {[%clk 0:02:37]} 13. g3 {[%clk 0:02:32]}  e5 {[%clk 0:02:17]} 14. Bg2 {[%clk 0:02:30]}  h5 {[%clk 0:02:04]} 15. h4 {[%clk 0:02:23]}  Qe7 {[%clk 0:01:39]} 16. Nf1 {[%clk 0:02:20]}  f5 {[%clk 0:01:37]} 17. Ne3 {[%clk 0:02:09]}  f4 {[%clk 0:01:12]} 18. Nd5 {[%clk 0:02:04]}  Qd8 {[%clk 0:01:11]} 19. Ng5 {[%clk 0:02:02]}  Nd4 {[%clk 0:00:51]} 20. c3 {[%clk 0:01:58]}  Ne6 {[%clk 0:00:49]} 21. Nxe6 {[%clk 0:01:39]}  Bxe6 {[%clk 0:00:49]} 22. Qd1 {[%clk 0:01:40]}  fxg3 {[%clk 0:00:38]} 23. fxg3 {[%clk 0:01:37]}  Bg4 {[%clk 0:00:38]} 24. Qd2 {[%clk 0:01:35]}  Ra7 {[%clk 0:00:33]} 25. Rf1 {[%clk 0:01:31]}  Raf7 {[%clk 0:00:32]} 26. Ne3 {[%clk 0:01:27]}  Nxh4 {[%clk 0:00:19]} 27. gxh4 {[%clk 0:01:24]}  Qxh4 {[%clk 0:00:19]} 28. Rxf7 {[%clk 0:01:24]}  Rxf7 {[%clk 0:00:19]} 29. Rf1 {[%clk 0:01:25]}  Rf4 {[%clk 0:00:11]} 30. Nd5 {[%clk 0:01:20]}  Rxf1+ {[%clk 0:00:10]} 31. Bxf1 {[%clk 0:01:21]}  Bf3 {[%clk 0:00:10]} 32. Qh2 {[%clk 0:01:18]}  Qg4+ {[%clk 0:00:10]} 33. Kf2 {[%clk 0:01:19]}  h4 {[%clk 0:00:09]} 34. Qh3 {[%clk 0:01:16]}  Qh5 {[%clk 0:00:05]} 35. Qxf3 {[%clk 0:01:16]} 1-0


[Site "https://www.chess.com"]

[Event "Titled Tuesday Blitz July 4 Early 2023"]
[White "Torres Dominguez, David"]
[Black "Estrada Nieto, Julian"]
[WhiteFideId "2220857"]
[BlackFideId "5101018"]
[WhiteElo "2154"]
[BlackElo "2556"]
[Result "0-1"]
[Round "1"]
[TimeControl "180+2"]
[Date "2023.07.04"]
[WhiteClock "0:00:00"]
[BlackClock "0:00:13"]
[Board "206"]

1. e3 {[%clk 0:02:59]}  e5 {[%clk 0:02:59]} 2. d4 {[%clk 0:03:00]}  exd4 {[%clk 0:02:59]} 3. exd4 {[%clk 0:03:01]}  d5 {[%clk 0:02:59]} 4. Bd3 {[%clk 0:03:02]}  Nf6 {[%clk 0:03:00]} 5. Nf3 {[%clk 0:03:01]}  Be7 {[%clk 0:02:57]} 6. O-O {[%clk 0:03:01]}  O-O {[%clk 0:02:57]} 7. Ne5 {[%clk 0:03:00]}  c5 {[%clk 0:02:54]} 8. dxc5 {[%clk 0:02:58]}  Bxc5 {[%clk 0:02:49]} 9. Nd2 {[%clk 0:02:54]}  Nc6 {[%clk 0:02:48]} 10. Nxc6 {[%clk 0:02:51]}  bxc6 {[%clk 0:02:48]} 11. Nb3 {[%clk 0:02:50]}  Bb6 {[%clk 0:02:43]} 12. Bg5 {[%clk 0:02:49]}  h6 {[%clk 0:02:41]} 13. Bh4 {[%clk 0:02:48]}  Re8 {[%clk 0:02:38]} 14. Qd2 {[%clk 0:02:48]}  a5 {[%clk 0:02:17]} 15. a4 {[%clk 0:02:47]}  Qd6 {[%clk 0:01:58]} 16. Bg3 {[%clk 0:02:43]}  Qd8 {[%clk 0:01:51]} 17. Rfe1 {[%clk 0:02:42]}  Ba6 {[%clk 0:01:49]} 18. Rxe8+ {[%clk 0:02:29]}  Nxe8 {[%clk 0:01:34]} 19. Bxa6 {[%clk 0:02:21]}  Rxa6 {[%clk 0:01:34]} 20. Rd1 {[%clk 0:02:03]}  Nf6 {[%clk 0:01:32]} 21. Bh4 {[%clk 0:01:58]}  Ra8 {[%clk 0:01:25]} 22. Qd3 {[%clk 0:01:44]}  Qd6 {[%clk 0:01:20]} 23. Bg3 {[%clk 0:01:43]}  Qe6 {[%clk 0:01:19]} 24. Nd4 {[%clk 0:01:37]}  Qd7 {[%clk 0:01:16]} 25. Qf5 {[%clk 0:01:23]}  Qb7 {[%clk 0:01:06]} 26. Be5 {[%clk 0:01:13]}  Ne4 {[%clk 0:01:02]} 27. f3 {[%clk 0:01:01]}  Nc5 {[%clk 0:00:55]} 28. b3 {[%clk 0:00:58]}  Ne6 {[%clk 0:00:55]} 29. Kh1 {[%clk 0:00:51]}  Bxd4 {[%clk 0:00:55]} 30. Bxd4 {[%clk 0:00:51]}  Nxd4 {[%clk 0:00:54]} 31. Rxd4 {[%clk 0:00:52]}  Re8 {[%clk 0:00:54]} 32. Rd1 {[%clk 0:00:49]}  Re2 {[%clk 0:00:44]} 33. Qd3 {[%clk 0:00:47]}  Qe7 {[%clk 0:00:42]} 34. h3 {[%clk 0:00:46]}  g6 {[%clk 0:00:40]} 35. Kh2 {[%clk 0:00:33]}  h5 {[%clk 0:00:40]} 36. Qc3 {[%clk 0:00:25]}  Qg5 {[%clk 0:00:30]} 37. Rg1 {[%clk 0:00:21]}  Qf4+ {[%clk 0:00:22]} 38. Kh1 {[%clk 0:00:21]}  Qc7 {[%clk 0:00:20]} 39. Qd3 {[%clk 0:00:19]}  Re6 {[%clk 0:00:19]} 40. Rd1 {[%clk 0:00:19]}  Qe7 {[%clk 0:00:18]} 41. c4 {[%clk 0:00:17]}  Re1+ {[%clk 0:00:17]} 42. Rxe1 {[%clk 0:00:15]}  Qxe1+ {[%clk 0:00:17]} 43. Kh2 {[%clk 0:00:16]}  Qe5+ {[%clk 0:00:18]} 44. Kh1 {[%clk 0:00:16]}  d4 {[%clk 0:00:18]} 45. Qd2 {[%clk 0:00:06]}  h4 {[%clk 0:00:16]} 46. Kg1 {[%clk 0:00:00]}  Kg7 {[%clk 0:00:13]} 0-1


[Site "https://www.chess.com"]

[Event "Titled Tuesday Blitz July 4 Early 2023"]
[White "Fonseca Manrique, Enrique"]
[Black "Tagliata"]
[WhiteFideId "5114330"]
[WhiteElo "2553"]
[BlackElo "2150"]
[Result "1/2-1/2"]
[Round "1"]
[TimeControl "180+2"]
[Date "2023.07.04"]
[WhiteClock "0:00:07"]
[BlackClock "0:00:19"]
[Board "207"]

1. e4 {[%clk 0:03:00]}  c5 {[%clk 0:02:59]} 2. Nc3 {[%clk 0:03:01]}  Nc6 {[%clk 0:02:56]} 3. f4 {[%clk 0:03:01]}  e6 {[%clk 0:02:55]} 4. Nf3 {[%clk 0:03:00]}  Nge7 {[%clk 0:02:55]} 5. d4 {[%clk 0:02:55]}  cxd4 {[%clk 0:02:56]} 6. Nxd4 {[%clk 0:02:56]}  Nxd4 {[%clk 0:02:56]} 7. Qxd4 {[%clk 0:02:56]}  Nc6 {[%clk 0:02:57]} 8. Qf2 {[%clk 0:02:56]}  d5 {[%clk 0:02:55]} 9. Bd3 {[%clk 0:02:54]}  Bb4 {[%clk 0:02:48]} 10. Bd2 {[%clk 0:02:54]}  d4 {[%clk 0:02:44]} 11. Nb1 {[%clk 0:02:50]}  Bc5 {[%clk 0:02:43]} 12. O-O {[%clk 0:02:44]}  O-O {[%clk 0:02:43]} 13. Na3 {[%clk 0:02:39]}  f6 {[%clk 0:02:38]} 14. Rad1 {[%clk 0:02:05]}  Qe7 {[%clk 0:02:37]} 15. Nc4 {[%clk 0:02:04]}  b5 {[%clk 0:02:34]} 16. Na5 {[%clk 0:02:01]}  Nxa5 {[%clk 0:02:35]} 17. Bxa5 {[%clk 0:02:00]}  Bd7 {[%clk 0:02:35]} 18. Qe2 {[%clk 0:01:53]}  b4 {[%clk 0:02:34]} 19. e5 {[%clk 0:01:48]}  f5 {[%clk 0:02:34]} 20. Kh1 {[%clk 0:01:45]}  Bc6 {[%clk 0:02:33]} 21. c3 {[%clk 0:01:42]}  bxc3 {[%clk 0:02:30]} 22. bxc3 {[%clk 0:01:42]}  dxc3 {[%clk 0:02:29]} 23. Bxc3 {[%clk 0:01:43]}  Rab8 {[%clk 0:02:26]} 24. Bc4 {[%clk 0:01:43]}  Be4 {[%clk 0:02:25]} 25. h3 {[%clk 0:01:42]}  Kh8 {[%clk 0:02:23]} 26. Kh2 {[%clk 0:01:42]}  Rfd8 {[%clk 0:02:22]} 27. Bb3 {[%clk 0:01:41]}  Rxd1 {[%clk 0:02:12]} 28. Rxd1 {[%clk 0:01:41]}  Qh4 {[%clk 0:02:09]} 29. Rf1 {[%clk 0:01:25]}  Qh6 {[%clk 0:02:01]} 30. Qc4 {[%clk 0:01:08]}  Be3 {[%clk 0:01:49]} 31. Qxe6 {[%clk 0:01:07]}  Bxf4+ {[%clk 0:01:48]} 32. Kg1 {[%clk 0:01:08]}  Be3+ {[%clk 0:01:47]} 33. Kh2 {[%clk 0:01:07]}  Bf4+ {[%clk 0:01:35]} 34. Kg1 {[%clk 0:01:06]}  Qh4 {[%clk 0:01:36]} 35. Rxf4 {[%clk 0:00:20]}  Qxf4 {[%clk 0:01:35]} 36. Qd6 {[%clk 0:00:20]}  Qe3+ {[%clk 0:01:28]} 37. Kh2 {[%clk 0:00:19]}  Qb6 {[%clk 0:01:21]} 38. Qd2 {[%clk 0:00:16]}  Rd8 {[%clk 0:01:16]} 39. Qg5 {[%clk 0:00:14]}  h6 {[%clk 0:01:13]} 40. Qe7 {[%clk 0:00:12]}  Qb8 {[%clk 0:00:50]} 41. Kg1 {[%clk 0:00:09]}  Qc8 {[%clk 0:00:48]} 42. e6 {[%clk 0:00:06]}  Rg8 {[%clk 0:00:46]} 43. Be5 {[%clk 0:00:05]}  Qc1+ {[%clk 0:00:45]} 44. Kh2 {[%clk 0:00:06]}  Qe3 {[%clk 0:00:43]} 45. Qh4 {[%clk 0:00:03]}  Qd2 {[%clk 0:00:41]} 46. Qg3 {[%clk 0:00:03]}  f4 {[%clk 0:00:40]} 47. Bxf4 {[%clk 0:00:03]}  Qe2 {[%clk 0:00:38]} 48. Be5 {[%clk 0:00:03]}  Kh7 {[%clk 0:00:36]} 49. e7 {[%clk 0:00:03]}  Bg6 {[%clk 0:00:33]} 50. Bxg8+ {[%clk 0:00:03]}  Kxg8 {[%clk 0:00:34]} 51. Qxg6 {[%clk 0:00:03]}  Qxe5+ {[%clk 0:00:34]} 52. Kh1 {[%clk 0:00:03]}  Qxe7 {[%clk 0:00:35]} 53. Qf5 {[%clk 0:00:03]}  Qe1+ {[%clk 0:00:35]} 54. Kh2 {[%clk 0:00:04]}  Qe7 {[%clk 0:00:33]} 55. Qd5+ {[%clk 0:00:04]}  Kh7 {[%clk 0:00:33]} 56. Qd3+ {[%clk 0:00:04]}  g6 {[%clk 0:00:33]} 57. Qd5 {[%clk 0:00:04]}  Qc7+ {[%clk 0:00:33]} 58. Kg1 {[%clk 0:00:05]}  h5 {[%clk 0:00:32]} 59. h4 {[%clk 0:00:04]}  Qe7 {[%clk 0:00:32]} 60. Qf3 {[%clk 0:00:04]}  Qe1+ {[%clk 0:00:32]} 61. Kh2 {[%clk 0:00:05]}  Qxh4+ {[%clk 0:00:32]} 62. Kg1 {[%clk 0:00:05]}  Qd4+ {[%clk 0:00:33]} 63. Kh2 {[%clk 0:00:06]}  Qe5+ {[%clk 0:00:32]} 64. Kg1 {[%clk 0:00:06]}  Qa1+ {[%clk 0:00:33]} 65. Kh2 {[%clk 0:00:06]}  Qxa2 {[%clk 0:00:33]} 66. Qb7+ {[%clk 0:00:05]}  Kh6 {[%clk 0:00:34]} 67. Qc6 {[%clk 0:00:05]}  Qd2 {[%clk 0:00:30]} 68. Qb7 {[%clk 0:00:05]}  Qf4+ {[%clk 0:00:30]} 69. Kg1 {[%clk 0:00:06]}  Qd4+ {[%clk 0:00:29]} 70. Kh2 {[%clk 0:00:06]}  a5 {[%clk 0:00:29]} 71. Qa6 {[%clk 0:00:05]}  a4 {[%clk 0:00:28]} 72. Qa8 {[%clk 0:00:05]}  Qf4+ {[%clk 0:00:28]} 73. g3 {[%clk 0:00:04]}  Qd2+ {[%clk 0:00:28]} 74. Kh3 {[%clk 0:00:05]}  Qd7+ {[%clk 0:00:27]} 75. Kh2 {[%clk 0:00:04]}  Kg7 {[%clk 0:00:27]} 76. Qa5 {[%clk 0:00:04]}  Kh7 {[%clk 0:00:27]} 77. Qa8 {[%clk 0:00:04]}  Qb5 {[%clk 0:00:24]} 78. Kh3 {[%clk 0:00:03]}  Qf5+ {[%clk 0:00:22]} 79. Kh2 {[%clk 0:00:04]}  Qc2+ {[%clk 0:00:23]} 80. Kh3 {[%clk 0:00:04]}  Qb3 {[%clk 0:00:17]} 81. Qa7+ {[%clk 0:00:04]}  Kh6 {[%clk 0:00:17]} 82. Qa8 {[%clk 0:00:04]}  a3 {[%clk 0:00:17]} 83. Qh8+ {[%clk 0:00:04]}  Kg5 {[%clk 0:00:18]} 84. Qe5+ {[%clk 0:00:05]}  Kh6 {[%clk 0:00:18]} 85. Qh8+ {[%clk 0:00:05]}  Kg5 {[%clk 0:00:19]} 86. Qe5+ {[%clk 0:00:06]}  Kh6 {[%clk 0:00:19]} 87. Qh8+ {[%clk 0:00:07]} 1/2-1/2


[Site "https://www.chess.com"]

[Event "Titled Tuesday Blitz July 4 Early 2023"]
[White "Sanchez, Robert"]
[Black "The_Sherman_Variation"]
[WhiteFideId "2034360"]
[WhiteElo "2136"]
[BlackElo "2552"]
[Result "0-1"]
[Round "1"]
[TimeControl "180+2"]
[Date "2023.07.04"]
[WhiteClock "0:01:06"]
[BlackClock "0:01:11"]
[Board "208"]

1. e4 {[%clk 0:02:57]}  g6 {[%clk 0:02:56]} 2. d4 {[%clk 0:02:57]}  Bg7 {[%clk 0:02:56]} 3. Nc3 {[%clk 0:02:57]}  d6 {[%clk 0:02:56]} 4. Be3 {[%clk 0:02:57]}  a6 {[%clk 0:02:56]} 5. f3 {[%clk 0:02:57]}  b5 {[%clk 0:02:56]} 6. Qd2 {[%clk 0:02:57]}  Nd7 {[%clk 0:02:56]} 7. O-O-O {[%clk 0:02:57]}  Bb7 {[%clk 0:02:56]} 8. d5 {[%clk 0:02:57]}  Rc8 {[%clk 0:02:52]} 9. h4 {[%clk 0:02:57]}  h5 {[%clk 0:02:51]} 10. Nh3 {[%clk 0:02:55]}  c5 {[%clk 0:02:49]} 11. dxc6 {[%clk 0:02:54]}  Bxc6 {[%clk 0:02:49]} 12. Bd4 {[%clk 0:02:55]}  Ngf6 {[%clk 0:02:45]} 13. Kb1 {[%clk 0:02:52]}  b4 {[%clk 0:02:37]} 14. Ne2 {[%clk 0:02:52]}  Qa5 {[%clk 0:02:37]} 15. Nc1 {[%clk 0:02:52]}  Nc5 {[%clk 0:02:28]} 16. Nb3 {[%clk 0:02:20]}  Nxb3 {[%clk 0:02:21]} 17. cxb3 {[%clk 0:02:21]}  O-O {[%clk 0:02:16]} 18. Nf2 {[%clk 0:02:15]}  e5 {[%clk 0:02:03]} 19. Be3 {[%clk 0:02:13]}  d5 {[%clk 0:02:04]} 20. Bh6 {[%clk 0:02:07]}  dxe4 {[%clk 0:02:00]} 21. Bxg7 {[%clk 0:02:07]}  Kxg7 {[%clk 0:02:00]} 22. g4 {[%clk 0:02:06]}  Rfd8 {[%clk 0:01:56]} 23. Qe1 {[%clk 0:02:03]}  Rxd1+ {[%clk 0:01:51]} 24. Qxd1 {[%clk 0:02:04]}  e3 {[%clk 0:01:46]} 25. g5 {[%clk 0:02:02]}  exf2 {[%clk 0:01:38]} 26. gxf6+ {[%clk 0:02:02]}  Kh7 {[%clk 0:01:38]} 27. Bc4 {[%clk 0:01:54]}  Qc5 {[%clk 0:01:30]} 28. Rf1 {[%clk 0:01:46]}  Bb5 {[%clk 0:01:27]} 29. Qd2 {[%clk 0:01:16]}  Bxc4 {[%clk 0:01:24]} 30. bxc4 {[%clk 0:01:17]}  Qxc4 {[%clk 0:01:24]} 31. Rxf2 {[%clk 0:01:17]}  Qxh4 {[%clk 0:01:21]} 32. Rf1 {[%clk 0:01:12]}  Qxf6 {[%clk 0:01:18]} 33. Qxb4 {[%clk 0:01:12]}  Qf5+ {[%clk 0:01:15]} 34. Ka1 {[%clk 0:01:06]}  Qxf3 {[%clk 0:01:11]} 0-1


[Site "https://www.chess.com"]

[Event "Titled Tuesday Blitz July 4 Early 2023"]
[White "Cramling Bellon, Anna"]
[Black "Ljukin, Sergei"]
[WhiteFideId "32009232"]
[BlackFideId "14102200"]
[WhiteElo "2085"]
[BlackElo "2542"]
[Result "0-1"]
[Round "1"]
[TimeControl "180+2"]
[Date "2023.07.04"]
[WhiteClock "0:00:05"]
[BlackClock "0:00:15"]
[Board "216"]

1. d4 {[%clk 0:02:57]}  d5 {[%clk 0:03:00]} 2. c4 {[%clk 0:02:52]}  c6 {[%clk 0:02:59]} 3. Nc3 {[%clk 0:02:52]}  Nf6 {[%clk 0:02:59]} 4. Nf3 {[%clk 0:02:52]}  dxc4 {[%clk 0:02:59]} 5. a4 {[%clk 0:02:42]}  Bf5 {[%clk 0:02:58]} 6. Nh4 {[%clk 0:02:41]}  Bg4 {[%clk 0:02:56]} 7. h3 {[%clk 0:02:34]}  Bh5 {[%clk 0:02:56]} 8. g4 {[%clk 0:02:33]}  Bg6 {[%clk 0:02:57]} 9. Nxg6 {[%clk 0:02:33]}  hxg6 {[%clk 0:02:57]} 10. Bg2 {[%clk 0:02:33]}  e6 {[%clk 0:02:54]} 11. e4 {[%clk 0:02:31]}  Bb4 {[%clk 0:02:53]} 12. Bg5 {[%clk 0:02:30]}  Qa5 {[%clk 0:02:51]} 13. Bd2 {[%clk 0:02:27]}  Nbd7 {[%clk 0:02:47]} 14. Qe2 {[%clk 0:02:22]}  Qa6 {[%clk 0:02:39]} 15. e5 {[%clk 0:02:16]}  Nd5 {[%clk 0:02:38]} 16. Ne4 {[%clk 0:02:15]}  Be7 {[%clk 0:02:31]} 17. O-O {[%clk 0:02:02]}  c5 {[%clk 0:02:07]} 18. dxc5 {[%clk 0:01:27]}  Nxc5 {[%clk 0:02:06]} 19. Nxc5 {[%clk 0:01:14]}  Bxc5 {[%clk 0:02:06]} 20. Rfc1 {[%clk 0:01:04]}  Rc8 {[%clk 0:02:05]} 21. Bf1 {[%clk 0:00:40]}  Bd4 {[%clk 0:01:38]} 22. Rxc4 {[%clk 0:00:37]}  Rxc4 {[%clk 0:01:37]} 23. Qxc4 {[%clk 0:00:37]}  Qxc4 {[%clk 0:01:36]} 24. Bxc4 {[%clk 0:00:38]}  Bxe5 {[%clk 0:01:26]} 25. Bxd5 {[%clk 0:00:25]}  exd5 {[%clk 0:01:26]} 26. Kg2 {[%clk 0:00:24]}  Kd7 {[%clk 0:01:20]} 27. Rd1 {[%clk 0:00:20]}  Kc8 {[%clk 0:00:39]} 28. b4 {[%clk 0:00:18]}  Rd8 {[%clk 0:00:37]} 29. Rc1+ {[%clk 0:00:17]}  Kb8 {[%clk 0:00:34]} 30. Kf3 {[%clk 0:00:14]}  Rc8 {[%clk 0:00:30]} 31. Rxc8+ {[%clk 0:00:04]}  Kxc8 {[%clk 0:00:30]} 32. Be3 {[%clk 0:00:03]}  a6 {[%clk 0:00:30]} 33. Ke2 {[%clk 0:00:02]}  Kd7 {[%clk 0:00:30]} 34. f4 {[%clk 0:00:02]}  Bc3 {[%clk 0:00:28]} 35. b5 {[%clk 0:00:02]}  d4 {[%clk 0:00:20]} 36. Bf2 {[%clk 0:00:02]}  Kd6 {[%clk 0:00:20]} 37. Kd3 {[%clk 0:00:02]}  Kd5 {[%clk 0:00:21]} 38. bxa6 {[%clk 0:00:02]}  bxa6 {[%clk 0:00:20]} 39. h4 {[%clk 0:00:03]}  f5 {[%clk 0:00:16]} 40. gxf5 {[%clk 0:00:02]}  gxf5 {[%clk 0:00:15]} 41. h5 {[%clk 0:00:02]}  Bb2 {[%clk 0:00:15]} 42. Bh4 {[%clk 0:00:02]}  Bc1 {[%clk 0:00:14]} 43. Bg5 {[%clk 0:00:02]}  Be3 {[%clk 0:00:13]} 44. h6 {[%clk 0:00:02]}  gxh6 {[%clk 0:00:13]} 45. Bxh6 {[%clk 0:00:02]}  Kc5 {[%clk 0:00:12]} 46. Bg5 {[%clk 0:00:02]}  Kb4 {[%clk 0:00:13]} 47. Bf6 {[%clk 0:00:02]}  Kxa4 {[%clk 0:00:13]} 48. Bxd4 {[%clk 0:00:03]}  Bxd4 {[%clk 0:00:12]} 49. Kxd4 {[%clk 0:00:04]}  Kb3 {[%clk 0:00:12]} 50. Ke5 {[%clk 0:00:04]}  a5 {[%clk 0:00:13]} 51. Kxf5 {[%clk 0:00:05]}  a4 {[%clk 0:00:14]} 52. Kg6 {[%clk 0:00:05]}  a3 {[%clk 0:00:14]} 53. f5 {[%clk 0:00:06]}  a2 {[%clk 0:00:15]} 54. f6 {[%clk 0:00:07]}  a1=Q {[%clk 0:00:16]} 55. f7 {[%clk 0:00:07]}  Qh8 {[%clk 0:00:15]} 56. Kf5 {[%clk 0:00:05]}  Qf8 {[%clk 0:00:15]} 57. Ke6 {[%clk 0:00:06]}  Kb4 {[%clk 0:00:15]} 58. Kf6 {[%clk 0:00:05]}  Kc5 {[%clk 0:00:15]} 0-1


[Site "https://www.chess.com"]

[Event "Titled Tuesday Blitz July 4 Early 2023"]
[White "Sailer, Mike"]
[Black "Zavgorodniy, Sergiy"]
[WhiteFideId "2012901"]
[BlackFideId "14110148"]
[WhiteElo "2083"]
[BlackElo "2540"]
[Result "0-1"]
[Round "1"]
[TimeControl "180+2"]
[Date "2023.07.04"]
[WhiteClock "0:01:47"]
[BlackClock "0:01:54"]
[Board "218"]

1. d4 {[%clk 0:02:58]}  Nf6 {[%clk 0:02:59]} 2. Nc3 {[%clk 0:02:54]}  d6 {[%clk 0:02:59]} 3. Bg5 {[%clk 0:02:52]}  e5 {[%clk 0:02:58]} 4. d5 {[%clk 0:02:49]}  Be7 {[%clk 0:02:55]} 5. Bxf6 {[%clk 0:02:42]}  Bxf6 {[%clk 0:02:54]} 6. e4 {[%clk 0:02:37]}  O-O {[%clk 0:02:54]} 7. h3 {[%clk 0:02:36]}  Bg5 {[%clk 0:02:39]} 8. Nf3 {[%clk 0:02:35]}  Bh6 {[%clk 0:02:39]} 9. Bd3 {[%clk 0:02:29]}  Nd7 {[%clk 0:02:36]} 10. O-O {[%clk 0:02:29]}  Nc5 {[%clk 0:02:35]} 11. b4 {[%clk 0:02:21]}  Nxd3 {[%clk 0:02:35]} 12. Qxd3 {[%clk 0:02:16]}  Bd7 {[%clk 0:02:35]} 13. a4 {[%clk 0:02:16]}  g6 {[%clk 0:02:28]} 14. Ne2 {[%clk 0:02:13]}  f5 {[%clk 0:02:27]} 15. c4 {[%clk 0:02:12]}  fxe4 {[%clk 0:02:24]} 16. Qxe4 {[%clk 0:02:05]}  Bf5 {[%clk 0:02:25]} 17. Qh4 {[%clk 0:02:04]}  Qxh4 {[%clk 0:02:25]} 18. Nxh4 {[%clk 0:02:05]}  Bd3 {[%clk 0:02:26]} 19. Rfe1 {[%clk 0:02:02]}  Bxc4 {[%clk 0:02:00]} 20. Nc3 {[%clk 0:01:59]}  Bd2 {[%clk 0:01:56]} 21. Re4 {[%clk 0:01:59]}  Bxc3 {[%clk 0:01:55]} 22. Rc1 {[%clk 0:01:58]}  Bxd5 {[%clk 0:01:55]} 23. Rxc3 {[%clk 0:01:47]}  Bxe4 {[%clk 0:01:54]} 0-1


[Site "https://www.chess.com"]

[Event "Titled Tuesday Blitz July 4 Early 2023"]
[White "David, Bogdan-Emanuel"]
[Black "Horokoskii"]
[WhiteFideId "1229907"]
[WhiteElo "2539"]
[BlackElo "2082"]
[Result "1-0"]
[Round "1"]
[TimeControl "180+2"]
[Date "2023.07.04"]
[WhiteClock "0:00:57"]
[BlackClock "0:00:41"]
[Board "219"]

1. e4 {[%clk 0:02:58]}  e6 {[%clk 0:02:58]} 2. Qe2 {[%clk 0:02:57]}  e5 {[%clk 0:02:56]} 3. Nf3 {[%clk 0:02:57]}  Nc6 {[%clk 0:02:56]} 4. g3 {[%clk 0:02:58]}  Nf6 {[%clk 0:02:56]} 5. Bg2 {[%clk 0:02:58]}  Bc5 {[%clk 0:02:54]} 6. O-O {[%clk 0:02:58]}  O-O {[%clk 0:02:53]} 7. d3 {[%clk 0:02:57]}  a5 {[%clk 0:02:51]} 8. a4 {[%clk 0:02:56]}  h6 {[%clk 0:02:47]} 9. Na3 {[%clk 0:02:55]}  d6 {[%clk 0:02:42]} 10. c3 {[%clk 0:02:54]}  Bg4 {[%clk 0:02:40]} 11. h3 {[%clk 0:02:54]}  Bxf3 {[%clk 0:02:39]} 12. Bxf3 {[%clk 0:02:55]}  Qe7 {[%clk 0:02:35]} 13. Bg2 {[%clk 0:02:50]}  Rfe8 {[%clk 0:02:22]} 14. Kh2 {[%clk 0:02:49]}  Rad8 {[%clk 0:02:16]} 15. Nb5 {[%clk 0:02:41]}  d5 {[%clk 0:02:10]} 16. Bd2 {[%clk 0:02:16]}  dxe4 {[%clk 0:02:03]} 17. dxe4 {[%clk 0:02:16]}  Rd7 {[%clk 0:01:57]} 18. Rad1 {[%clk 0:02:05]}  Red8 {[%clk 0:01:55]} 19. Bc1 {[%clk 0:01:53]}  Rxd1 {[%clk 0:01:50]} 20. Rxd1 {[%clk 0:01:54]}  Rxd1 {[%clk 0:01:49]} 21. Qxd1 {[%clk 0:01:55]}  Bxf2 {[%clk 0:01:49]} 22. Qe2 {[%clk 0:01:44]}  Bb6 {[%clk 0:01:48]} 23. Qc4 {[%clk 0:01:44]}  Qd7 {[%clk 0:01:32]} 24. Qe2 {[%clk 0:01:40]}  Ne7 {[%clk 0:01:22]} 25. Be3 {[%clk 0:01:32]}  Bxe3 {[%clk 0:01:20]} 26. Qxe3 {[%clk 0:01:33]}  c6 {[%clk 0:01:21]} 27. Na3 {[%clk 0:01:33]}  Qd1 {[%clk 0:01:19]} 28. Nc4 {[%clk 0:01:31]}  Ng6 {[%clk 0:01:15]} 29. Nxa5 {[%clk 0:01:28]}  Qxa4 {[%clk 0:01:11]} 30. Nxb7 {[%clk 0:01:27]}  Qb5 {[%clk 0:01:09]} 31. Nd8 {[%clk 0:01:11]}  Qxb2 {[%clk 0:01:07]} 32. Nxc6 {[%clk 0:01:10]}  Nf8 {[%clk 0:00:51]} 33. Nxe5 {[%clk 0:01:09]}  Ne6 {[%clk 0:00:51]} 34. Nc6 {[%clk 0:01:02]}  Qb5 {[%clk 0:00:47]} 35. Nd4 {[%clk 0:00:58]}  Nc5 {[%clk 0:00:41]} 36. Nxb5 {[%clk 0:00:57]} 1-0


[Site "https://www.chess.com"]

[Event "Titled Tuesday Blitz July 4 Early 2023"]
[White "Ho, In Hei Henry"]
[Black "Richter, Paul"]
[WhiteFideId "6002552"]
[BlackFideId "2046350"]
[WhiteElo "2070"]
[BlackElo "2538"]
[Result "0-1"]
[Round "1"]
[TimeControl "180+2"]
[Date "2023.07.04"]
[WhiteClock "0:00:10"]
[BlackClock "0:00:12"]
[Board "222"]

1. d4 {[%clk 0:02:59]}  Nf6 {[%clk 0:02:59]} 2. Nf3 {[%clk 0:03:00]}  g6 {[%clk 0:02:59]} 3. c4 {[%clk 0:03:00]}  Bg7 {[%clk 0:03:00]} 4. Nc3 {[%clk 0:03:01]}  O-O {[%clk 0:03:00]} 5. e3 {[%clk 0:03:01]}  d6 {[%clk 0:03:00]} 6. Bd3 {[%clk 0:03:02]}  Nbd7 {[%clk 0:03:00]} 7. O-O {[%clk 0:03:01]}  e5 {[%clk 0:03:01]} 8. Re1 {[%clk 0:02:59]}  Re8 {[%clk 0:02:59]} 9. dxe5 {[%clk 0:02:52]}  dxe5 {[%clk 0:03:00]} 10. e4 {[%clk 0:02:52]}  c6 {[%clk 0:02:46]} 11. h3 {[%clk 0:02:50]}  Nh5 {[%clk 0:02:36]} 12. Bf1 {[%clk 0:02:43]}  Qc7 {[%clk 0:02:30]} 13. Qc2 {[%clk 0:02:39]}  Nc5 {[%clk 0:02:29]} 14. Be3 {[%clk 0:02:35]}  Ne6 {[%clk 0:02:30]} 15. Rad1 {[%clk 0:02:30]}  b6 {[%clk 0:02:27]} 16. b3 {[%clk 0:02:28]}  Bb7 {[%clk 0:02:26]} 17. Ne2 {[%clk 0:02:22]}  Rad8 {[%clk 0:02:23]} 18. Ng5 {[%clk 0:02:21]}  Nd4 {[%clk 0:02:14]} 19. Qb2 {[%clk 0:02:02]}  h6 {[%clk 0:02:07]} 20. Bxd4 {[%clk 0:01:46]}  exd4 {[%clk 0:02:06]} 21. Nf3 {[%clk 0:01:44]}  c5 {[%clk 0:02:00]} 22. Nd2 {[%clk 0:01:13]}  Bxe4 {[%clk 0:01:34]} 23. Nxe4 {[%clk 0:01:12]}  Rxe4 {[%clk 0:01:34]} 24. Nc1 {[%clk 0:01:10]}  Rxe1 {[%clk 0:01:27]} 25. Rxe1 {[%clk 0:01:10]}  Qd7 {[%clk 0:00:33]} 26. Nd3 {[%clk 0:01:08]}  Re8 {[%clk 0:00:33]} 27. Qd2 {[%clk 0:01:07]}  Nf6 {[%clk 0:00:31]} 28. f3 {[%clk 0:01:04]}  h5 {[%clk 0:00:30]} 29. Kf2 {[%clk 0:01:02]}  Kh7 {[%clk 0:00:30]} 30. Ne5 {[%clk 0:00:59]}  Qc7 {[%clk 0:00:29]} 31. Nd3 {[%clk 0:00:48]}  Bh6 {[%clk 0:00:25]} 32. Qd1 {[%clk 0:00:49]}  Be3+ {[%clk 0:00:23]} 33. Rxe3 {[%clk 0:00:39]}  Rxe3 {[%clk 0:00:21]} 34. Kg1 {[%clk 0:00:33]}  Qg3 {[%clk 0:00:19]} 35. Nf2 {[%clk 0:00:27]}  Kg7 {[%clk 0:00:18]} 36. Bd3 {[%clk 0:00:25]}  Qe5 {[%clk 0:00:17]} 37. Be4 {[%clk 0:00:21]}  Nxe4 {[%clk 0:00:16]} 38. Nxe4 {[%clk 0:00:21]}  Rxe4 {[%clk 0:00:13]} 39. fxe4 {[%clk 0:00:20]}  Qxe4 {[%clk 0:00:13]} 40. Kf2 {[%clk 0:00:17]}  Qe3+ {[%clk 0:00:13]} 41. Kf1 {[%clk 0:00:17]}  d3 {[%clk 0:00:14]} 42. Qe1 {[%clk 0:00:16]}  Qf4+ {[%clk 0:00:11]} 43. Qf2 {[%clk 0:00:14]}  Qc1+ {[%clk 0:00:11]} 44. Qe1 {[%clk 0:00:10]}  d2 {[%clk 0:00:12]} 0-1


[Site "https://www.chess.com"]